[Event "*** SCC Grand Prix: Titled Tuesday Blitz"]
[Site "Chess.com"]
[Date "2020.08.25"]
[Round "9"]
[White "Shuvalov"]
[Black "Fh2411"]
[Result "0-1"]
[WhiteElo "2406"]
[BlackElo "2545"]
[TimeControl "180+1"]
[EndTime "11:47:25 PDT"]
[Termination "Fh2411 won by resignation"]

1. Nf3 {[%clk 0:03:00.9]} 1... d5 {[%clk 0:02:59.6]} 2. c4 {[%clk 0:03:00.7]}
2... c6 {[%clk 0:03:00.5]} 3. g3 {[%clk 0:03:00.3]} 3... Bg4 {[%clk 0:02:57.9]}
4. cxd5 {[%clk 0:02:55.4]} 4... Bxf3 {[%clk 0:02:57.1]} 5. exf3 {[%clk
0:02:53.4]} 5... cxd5 {[%clk 0:02:55]} 6. d4 {[%clk 0:02:52.8]} 6... e6 {[%clk
0:02:54]} 7. Bb5+ {[%clk 0:02:47.4]} 7... Nc6 {[%clk 0:02:53]} 8. O-O {[%clk
0:02:47.1]} 8... Bd6 {[%clk 0:02:51.6]} 9. f4 {[%clk 0:02:44.9]} 9... Ne7 {[%clk
0:02:51.5]} 10. Be3 {[%clk 0:02:41.4]} 10... O-O {[%clk 0:02:51.3]} 11. Nc3
{[%clk 0:02:41.1]} 11... Rc8 {[%clk 0:02:42.6]} 12. a3 {[%clk 0:02:37]} 12...
Na5 {[%clk 0:02:32.4]} 13. Bd3 {[%clk 0:02:27.8]} 13... g6 {[%clk 0:02:29.7]}
14. Rc1 {[%clk 0:02:21.5]} 14... Nc4 {[%clk 0:02:22.2]} 15. Rc2 {[%clk
0:02:21.7]} 15... Nxb2 {[%clk 0:02:13.7]} 16. Rxb2 {[%clk 0:02:20.4]} 16... Rxc3
{[%clk 0:02:14.2]} 17. Rxb7 {[%clk 0:02:19.8]} 17... Rxa3 {[%clk 0:02:14.2]} 18.
Qb1 {[%clk 0:02:03.5]} 18... a5 {[%clk 0:02:10.4]} 19. Bc1 {[%clk 0:01:58.7]}
19... Rc3 {[%clk 0:02:03.9]} 20. Bd2 {[%clk 0:01:56.9]} 20... Ra3 {[%clk
0:01:41.6]} 21. Bc1 {[%clk 0:01:55.5]} 21... Ra4 {[%clk 0:01:41.8]} 22. Be3
{[%clk 0:01:21.7]} 22... Rb4 {[%clk 0:01:39.6]} 23. Rxb4 {[%clk 0:01:20.3]}
23... Bxb4 {[%clk 0:01:36.2]} 24. Rc1 {[%clk 0:01:19.5]} 24... Qb8 {[%clk
0:01:31.4]} 25. Qa2 {[%clk 0:01:17]} 25... Rc8 {[%clk 0:01:30]} 26. Rb1 {[%clk
0:01:16.2]} 26... Qd6 {[%clk 0:01:23.8]} 27. Kg2 {[%clk 0:01:13.9]} 27... Rc3
{[%clk 0:00:57.2]} 28. Rb3 {[%clk 0:01:13.4]} 28... Rxb3 {[%clk 0:00:50.9]} 29.
Qxb3 {[%clk 0:01:14.3]} 29... Qc6 {[%clk 0:00:50.6]} 30. Bc2 {[%clk 0:01:12.6]}
30... Nc8 {[%clk 0:00:49.9]} 31. g4 {[%clk 0:01:02.3]} 31... Nd6 {[%clk
0:00:49.3]} 32. f5 {[%clk 0:00:59.8]} 32... gxf5 {[%clk 0:00:39.4]} 33. gxf5
{[%clk 0:01:00]} 33... Nxf5 {[%clk 0:00:39.9]} 34. Bxf5 {[%clk 0:00:59.6]} 34...
exf5 {[%clk 0:00:40.8]} 35. Qd3 {[%clk 0:00:52.3]} 35... Qg6+ {[%clk 0:00:40.1]}
36. Kf1 {[%clk 0:00:50.6]} 36... f4 {[%clk 0:00:36.8]} 37. Qxg6+ {[%clk
0:00:49.1]} 37... hxg6 {[%clk 0:00:36]} 38. Bxf4 {[%clk 0:00:49.7]} 38... Kf8
{[%clk 0:00:35.3]} 39. Ke2 {[%clk 0:00:49.3]} 39... Ke7 {[%clk 0:00:35.8]} 40.
Kd3 {[%clk 0:00:49.5]} 40... Ke6 {[%clk 0:00:35.6]} 41. Kc2 {[%clk 0:00:49.5]}
41... a4 {[%clk 0:00:35.9]} 42. Bc7 {[%clk 0:00:40.9]} 42... Kf5 {[%clk
0:00:35.7]} 43. Bb6 {[%clk 0:00:40.1]} 43... Ke4 {[%clk 0:00:34.9]} 44. Bc5
{[%clk 0:00:40.4]} 44... Kf3 {[%clk 0:00:34.4]} 45. Bxb4 {[%clk 0:00:39.8]}
45... Kxf2 {[%clk 0:00:35]} 46. Kd3 {[%clk 0:00:33.6]} 46... f5 {[%clk
0:00:34.7]} 47. h4 {[%clk 0:00:29.5]} 47... f4 {[%clk 0:00:34.2]} 48. Ba3 {[%clk
0:00:25.2]} 48... f3 {[%clk 0:00:34.3]} 49. Kd2 {[%clk 0:00:24.8]} 49... Kg2
{[%clk 0:00:33.9]} 50. Ke3 {[%clk 0:00:22.6]} 50... f2 {[%clk 0:00:33.9]} 51.
Kf4 {[%clk 0:00:23.5]} 51... f1=Q+ {[%clk 0:00:33.9]} 52. Kg5 {[%clk 0:00:24.4]}
52... Qf5+ {[%clk 0:00:33.6]} 53. Kh6 {[%clk 0:00:24.4]} 53... Qh5+ {[%clk
0:00:33.9]} 54. Kg7 {[%clk 0:00:24.5]} 54... Qxh4 {[%clk 0:00:34.4]} 0-1

[Event "*** SCC Grand Prix: Titled Tuesday Blitz"]
[Site "Chess.com"]
[Date "2020.08.25"]
[Round "9"]
[White "cassoulet"]
[Black "Bigfish1995"]
[Result "1-0"]
[WhiteElo "2734"]
[BlackElo "3030"]
[TimeControl "180+1"]
[EndTime "11:47:27 PDT"]
[Termination "cassoulet won by resignation"]

1. e4 {[%clk 0:03:00.9]} 1... Nc6 {[%clk 0:02:57.8]} 2. Nf3 {[%clk 0:03:00.2]}
2... Nb8 {[%clk 0:02:58.7]} 3. d4 {[%clk 0:02:59.4]} 3... Nc6 {[%clk 0:02:59.6]}
4. Nc3 {[%clk 0:02:59.9]} 4... Nb8 {[%clk 0:03:00.5]} 5. Bc4 {[%clk 0:02:59.9]}
5... e6 {[%clk 0:03:00]} 6. O-O {[%clk 0:02:59.4]} 6... d6 {[%clk 0:03:00.6]} 7.
a3 {[%clk 0:02:58.2]} 7... Be7 {[%clk 0:03:01.1]} 8. Bf4 {[%clk 0:02:57.8]} 8...
c6 {[%clk 0:03:01.1]} 9. d5 {[%clk 0:02:57.6]} 9... cxd5 {[%clk 0:02:54.3]} 10.
exd5 {[%clk 0:02:58.5]} 10... e5 {[%clk 0:02:53]} 11. Bg3 {[%clk 0:02:58.1]}
11... Nd7 {[%clk 0:02:52.1]} 12. Nd2 {[%clk 0:02:54.5]} 12... Nh6 {[%clk
0:02:47.4]} 13. f4 {[%clk 0:02:45.2]} 13... Nf5 {[%clk 0:02:40.8]} 14. fxe5
{[%clk 0:02:32.6]} 14... Nxg3 {[%clk 0:02:40.7]} 15. e6 {[%clk 0:02:32.9]} 15...
Nxf1 {[%clk 0:02:34.7]} 16. exd7+ {[%clk 0:02:13.7]} 16... Bxd7 {[%clk
0:02:33.1]} 17. Qxf1 {[%clk 0:02:13.6]} 17... Qb6+ {[%clk 0:02:29.1]} 18. Kh1
{[%clk 0:02:12]} 18... O-O {[%clk 0:02:25.9]} 19. Bb3 {[%clk 0:02:07.3]} 19...
Rae8 {[%clk 0:02:21]} 20. Nce4 {[%clk 0:02:04.7]} 20... f5 {[%clk 0:02:16.8]}
21. Nf2 {[%clk 0:01:56]} 21... Bf6 {[%clk 0:02:15.4]} 22. Nd3 {[%clk 0:01:55.3]}
22... Qc7 {[%clk 0:02:01.8]} 23. Qf4 {[%clk 0:01:53.8]} 23... Kh8 {[%clk
0:01:58.6]} 24. Nc4 {[%clk 0:01:52.1]} 24... Be7 {[%clk 0:01:46.4]} 25. Rf1
{[%clk 0:01:51]} 25... b5 {[%clk 0:01:45.6]} 26. Ne3 {[%clk 0:01:46]} 26... Bf6
{[%clk 0:01:42.1]} 27. c3 {[%clk 0:01:46.3]} 27... Bxc3 {[%clk 0:01:35.8]} 28.
bxc3 {[%clk 0:01:36.8]} 28... Qxc3 {[%clk 0:01:35.8]} 29. Bc2 {[%clk 0:01:37.1]}
29... Qd2 {[%clk 0:01:33.1]} 30. Rf3 {[%clk 0:01:19.4]} 30... Re4 {[%clk
0:01:28]} 31. Qxd6 {[%clk 0:01:18.2]} 31... Rfe8 {[%clk 0:01:11.4]} 32. Qxd7
{[%clk 0:01:15.8]} 32... Rxe3 {[%clk 0:01:07.1]} 33. Rxe3 {[%clk 0:01:05.2]}
33... Qxe3 {[%clk 0:01:08]} 34. h3 {[%clk 0:01:01.5]} 34... f4 {[%clk
0:00:40.1]} 35. Qf5 {[%clk 0:01:00.1]} 35... f3 {[%clk 0:00:36.7]} 36. Qxf3
{[%clk 0:00:55.2]} 36... Qxf3 {[%clk 0:00:27.9]} 37. gxf3 {[%clk 0:00:56.1]}
37... Rd8 {[%clk 0:00:24.5]} 38. Bb3 {[%clk 0:00:52.7]} 38... a5 {[%clk
0:00:22.4]} 39. Ne5 {[%clk 0:00:52.5]} 39... Kg8 {[%clk 0:00:20.3]} 40. d6+
{[%clk 0:00:51.5]} 40... Kf8 {[%clk 0:00:20.1]} 41. d7 {[%clk 0:00:51.3]} 41...
Ke7 {[%clk 0:00:15.1]} 42. Nc6+ {[%clk 0:00:50.8]} 42... Kxd7 {[%clk 0:00:15.6]}
43. Nxd8 {[%clk 0:00:51.7]} 43... Kxd8 {[%clk 0:00:16.5]} 44. Kg2 {[%clk
0:00:52.3]} 44... Ke7 {[%clk 0:00:17]} 45. Kg3 {[%clk 0:00:52.6]} 45... Kd6
{[%clk 0:00:16.8]} 46. Kf4 {[%clk 0:00:53.1]} 46... Kc5 {[%clk 0:00:17.7]} 47.
Ke5 {[%clk 0:00:51.8]} 47... a4 {[%clk 0:00:16.8]} 48. Bc2 {[%clk 0:00:50.9]}
48... Kc4 {[%clk 0:00:16.6]} 49. Bxh7 {[%clk 0:00:46.8]} 49... Kb3 {[%clk
0:00:16.4]} 50. Bd3 {[%clk 0:00:42.9]} 50... b4 {[%clk 0:00:15.1]} 51. axb4
{[%clk 0:00:43.8]} 51... a3 {[%clk 0:00:16]} 52. Kd4 {[%clk 0:00:43.9]} 52...
Kxb4 {[%clk 0:00:13.5]} 53. Bc4 {[%clk 0:00:42.9]} 53... g5 {[%clk 0:00:14.4]}
54. Bf7 {[%clk 0:00:42.3]} 54... Ka4 {[%clk 0:00:15.3]} 55. Ke4 {[%clk
0:00:42.5]} 55... a2 {[%clk 0:00:14.6]} 56. Bxa2 {[%clk 0:00:41.9]} 1-0

[Event "*** SCC Grand Prix: Titled Tuesday Blitz"]
[Site "Chess.com"]
[Date "2020.08.25"]
[Round "9"]
[White "GMKrikor"]
[Black "rasmussvane"]
[Result "1-0"]
[WhiteElo "2729"]
[BlackElo "2845"]
[TimeControl "180+1"]
[EndTime "11:47:27 PDT"]
[Termination "GMKrikor won on time"]

1. e4 {[%clk 0:03:00.9]} 1... c6 {[%clk 0:03:00.2]} 2. d4 {[%clk 0:03:00.3]}
2... d5 {[%clk 0:03:01.1]} 3. Nc3 {[%clk 0:03:00.5]} 3... dxe4 {[%clk
0:03:01.4]} 4. Nxe4 {[%clk 0:03:01.4]} 4... Nf6 {[%clk 0:03:02.1]} 5. Nxf6+
{[%clk 0:03:00.6]} 5... exf6 {[%clk 0:03:03]} 6. c3 {[%clk 0:03:00.8]} 6... Bd6
{[%clk 0:03:03.5]} 7. Bd3 {[%clk 0:03:01]} 7... O-O {[%clk 0:03:04]} 8. Qc2
{[%clk 0:03:01.4]} 8... Re8+ {[%clk 0:03:04.9]} 9. Ne2 {[%clk 0:03:01.5]} 9...
h5 {[%clk 0:03:05.4]} 10. O-O {[%clk 0:03:01.8]} 10... h4 {[%clk 0:03:05.8]} 11.
h3 {[%clk 0:03:02.3]} 11... Nd7 {[%clk 0:03:05.3]} 12. Be3 {[%clk 0:03:02.6]}
12... Nf8 {[%clk 0:03:05]} 13. Rad1 {[%clk 0:03:02.7]} 13... Be6 {[%clk
0:03:05.3]} 14. c4 {[%clk 0:03:02.5]} 14... Rc8 {[%clk 0:03:05.4]} 15. Rfe1
{[%clk 0:02:51.9]} 15... Bb8 {[%clk 0:03:05.8]} 16. Bf4 {[%clk 0:02:33.1]} 16...
Bxf4 {[%clk 0:02:39.8]} 17. Nxf4 {[%clk 0:02:33]} 17... Qd6 {[%clk 0:02:40.2]}
18. Qc1 {[%clk 0:02:16.9]} 18... Rcd8 {[%clk 0:02:25.5]} 19. Bf1 {[%clk
0:01:58.8]} 19... b6 {[%clk 0:01:41.5]} 20. d5 {[%clk 0:01:40.2]} 20... cxd5
{[%clk 0:01:33.2]} 21. Nxd5 {[%clk 0:01:38.2]} 21... Bxd5 {[%clk 0:01:20.6]} 22.
Rxd5 {[%clk 0:01:35.5]} 22... Qb4 {[%clk 0:01:14.7]} 23. Rxe8 {[%clk 0:01:28.8]}
23... Rxe8 {[%clk 0:01:15.6]} 24. a3 {[%clk 0:01:25.9]} 24... Re1 {[%clk
0:00:59.2]} 25. axb4 {[%clk 0:01:18.1]} 25... Rxc1 {[%clk 0:00:58.4]} 26. Rd8
{[%clk 0:00:56.2]} 26... g5 {[%clk 0:00:24.1]} 27. Ra8 {[%clk 0:00:52.4]} 27...
Kg7 {[%clk 0:00:24.2]} 28. Rxa7 {[%clk 0:00:43.8]} 28... Ne6 {[%clk 0:00:24.4]}
29. f3 {[%clk 0:00:38.2]} 29... Nf4 {[%clk 0:00:24.5]} 30. Rb7 {[%clk
0:00:28.6]} 30... Rb1 {[%clk 0:00:08.2]} 31. Rxb6 {[%clk 0:00:27.2]} 31... Rxb2
{[%clk 0:00:06]} 32. c5 {[%clk 0:00:27.8]} 32... Nd5 {[%clk 0:00:05.3]} 33. Rd6
{[%clk 0:00:20.4]} 33... Nxb4 {[%clk 0:00:04.1]} 34. Rb6 {[%clk 0:00:20.2]}
34... Kf8 {[%clk 0:00:02.2]} 35. Rb7 {[%clk 0:00:12.5]} 35... Nd3 {[%clk
0:00:01]} 36. c6 {[%clk 0:00:07.5]} 1-0

[Event "*** SCC Grand Prix: Titled Tuesday Blitz"]
[Site "Chess.com"]
[Date "2020.08.25"]
[Round "9"]
[White "Jungle_Jaguar"]
[Black "Jovidon91"]
[Result "1-0"]
[WhiteElo "2639"]
[BlackElo "2473"]
[TimeControl "180+1"]
[EndTime "11:47:27 PDT"]
[Termination "Jungle_Jaguar won by resignation"]

1. e4 {[%clk 0:03:00.9]} 1... c5 {[%clk 0:02:47.8]} 2. Nf3 {[%clk 0:03:00.3]}
2... e6 {[%clk 0:02:48.2]} 3. d4 {[%clk 0:02:58.2]} 3... cxd4 {[%clk 0:02:49.1]}
4. Nxd4 {[%clk 0:02:59.1]} 4... Nc6 {[%clk 0:02:50]} 5. Nc3 {[%clk 0:02:57.7]}
5... Qc7 {[%clk 0:02:49.4]} 6. Be3 {[%clk 0:02:57.5]} 6... a6 {[%clk 0:02:49.5]}
7. Qf3 {[%clk 0:02:58]} 7... Ne5 {[%clk 0:02:47.6]} 8. Qg3 {[%clk 0:02:49.3]}
8... Nf6 {[%clk 0:02:47.9]} 9. O-O-O {[%clk 0:02:46.3]} 9... b5 {[%clk
0:02:47.5]} 10. a3 {[%clk 0:02:43.8]} 10... b4 {[%clk 0:02:46]} 11. axb4 {[%clk
0:02:30.3]} 11... Bb7 {[%clk 0:02:45.8]} 12. Bf4 {[%clk 0:02:20.3]} 12... d6
{[%clk 0:02:32.4]} 13. Qe3 {[%clk 0:02:12.6]} 13... Neg4 {[%clk 0:02:25.6]} 14.
Qe1 {[%clk 0:02:11.6]} 14... e5 {[%clk 0:02:25.2]} 15. Nd5 {[%clk 0:01:44.4]}
15... Bxd5 {[%clk 0:02:01.8]} 16. exd5 {[%clk 0:01:45.3]} 16... Be7 {[%clk
0:02:01.9]} 17. h3 {[%clk 0:01:25.1]} 17... exd4 {[%clk 0:01:38]} 18. hxg4
{[%clk 0:01:24.5]} 18... Nxg4 {[%clk 0:01:38.3]} 19. Rxd4 {[%clk 0:01:11.9]}
19... Rc8 {[%clk 0:01:34.3]} 20. Rc4 {[%clk 0:01:06.5]} 20... Qb7 {[%clk
0:01:28.6]} 21. Rxc8+ {[%clk 0:01:05.1]} 21... Qxc8 {[%clk 0:01:29.5]} 22. Bxd6
{[%clk 0:01:05]} 22... Qd7 {[%clk 0:01:27.9]} 23. Bc5 {[%clk 0:01:00.5]} 23...
Kf8 {[%clk 0:01:20.4]} 24. f3 {[%clk 0:00:58.4]} 24... Nf6 {[%clk 0:01:10.7]}
25. Qxe7+ {[%clk 0:00:39.6]} 25... Qxe7 {[%clk 0:01:11.6]} 26. c4 {[%clk
0:00:37]} 26... h5 {[%clk 0:00:57.4]} 27. Bd3 {[%clk 0:00:36.3]} 27... Ke8
{[%clk 0:00:56.5]} 28. Bxe7 {[%clk 0:00:35.6]} 28... Kxe7 {[%clk 0:00:57.4]} 29.
Re1+ {[%clk 0:00:35.8]} 29... Kd6 {[%clk 0:00:57.5]} 30. Kc2 {[%clk 0:00:35.4]}
30... g5 {[%clk 0:00:57.5]} 31. Kc3 {[%clk 0:00:34.7]} 31... Rb8 {[%clk
0:00:52.2]} 32. Ra1 {[%clk 0:00:34.9]} 32... Ke5 {[%clk 0:00:47.1]} 33. Rxa6
{[%clk 0:00:33.5]} 33... Ne8 {[%clk 0:00:42.9]} 34. b5 {[%clk 0:00:28.7]} 34...
Nd6 {[%clk 0:00:41.9]} 35. Rc6 {[%clk 0:00:25.4]} 35... f5 {[%clk 0:00:38.5]}
36. Kb4 {[%clk 0:00:25.2]} 36... Kd4 {[%clk 0:00:21.7]} 37. Rxd6 {[%clk
0:00:25.1]} 37... Kxd3 {[%clk 0:00:21.8]} 38. c5 {[%clk 0:00:21.2]} 38... Ke3
{[%clk 0:00:20.3]} 39. c6 {[%clk 0:00:20.7]} 39... Kf2 {[%clk 0:00:20]} 40. c7
{[%clk 0:00:20.5]} 40... Rc8 {[%clk 0:00:19.2]} 41. b6 {[%clk 0:00:21]} 41...
Kxg2 {[%clk 0:00:19.3]} 42. Rd8 {[%clk 0:00:21.2]} 1-0

[Event "*** SCC Grand Prix: Titled Tuesday Blitz"]
[Site "Chess.com"]
[Date "2020.08.25"]
[Round "9"]
[White "Mr_Sinigami"]
[Black "freshfoodcompany"]
[Result "1-0"]
[WhiteElo "2527"]
[BlackElo "2358"]
[TimeControl "180+1"]
[EndTime "11:47:27 PDT"]
[Termination "Mr_Sinigami won by checkmate"]

1. c4 {[%clk 0:03:00.9]} 1... e6 {[%clk 0:02:59.4]} 2. Nc3 {[%clk 0:03:01.5]}
2... d5 {[%clk 0:02:59.4]} 3. e3 {[%clk 0:03:01.8]} 3... Be7 {[%clk 0:02:57.9]}
4. Nf3 {[%clk 0:03:02]} 4... Nf6 {[%clk 0:02:57.6]} 5. b3 {[%clk 0:03:02.4]}
5... O-O {[%clk 0:02:56.8]} 6. Be2 {[%clk 0:03:02.7]} 6... c5 {[%clk 0:02:56.8]}
7. cxd5 {[%clk 0:02:59.5]} 7... exd5 {[%clk 0:02:56.2]} 8. d4 {[%clk 0:02:58.9]}
8... Nc6 {[%clk 0:02:52.8]} 9. O-O {[%clk 0:02:57.3]} 9... Bg4 {[%clk
0:02:47.9]} 10. Bb2 {[%clk 0:02:54.4]} 10... Bxf3 {[%clk 0:02:38.3]} 11. Bxf3
{[%clk 0:02:52.9]} 11... cxd4 {[%clk 0:02:38.4]} 12. exd4 {[%clk 0:02:51.4]}
12... Rc8 {[%clk 0:02:33.4]} 13. Ne2 {[%clk 0:02:37.3]} 13... Qb6 {[%clk
0:02:28.2]} 14. Nf4 {[%clk 0:02:17.5]} 14... Rfd8 {[%clk 0:02:23.8]} 15. Rc1
{[%clk 0:02:17]} 15... Bd6 {[%clk 0:02:16.9]} 16. Nh5 {[%clk 0:01:39.6]} 16...
Nxh5 {[%clk 0:02:11.8]} 17. Bxh5 {[%clk 0:01:38.6]} 17... Bf4 {[%clk 0:02:08.2]}
18. Rc5 {[%clk 0:01:33.3]} 18... g6 {[%clk 0:02:03.6]} 19. Bg4 {[%clk
0:01:31.6]} 19... f5 {[%clk 0:01:54]} 20. Bf3 {[%clk 0:01:30.2]} 20... Ne7
{[%clk 0:01:51.5]} 21. Qc2 {[%clk 0:01:15.2]} 21... Rxc5 {[%clk 0:01:39.4]} 22.
dxc5 {[%clk 0:01:11.8]} 22... Qc7 {[%clk 0:01:38.2]} 23. Re1 {[%clk 0:01:08.5]}
23... Bxh2+ {[%clk 0:01:26.9]} 24. Kh1 {[%clk 0:01:07.1]} 24... Bf4 {[%clk
0:01:11.9]} 25. Qc3 {[%clk 0:01:04.6]} 25... d4 {[%clk 0:01:07.9]} 26. Qc4+
{[%clk 0:01:04.1]} 26... Kf8 {[%clk 0:01:00.4]} 27. Qe6 {[%clk 0:00:53.5]} 27...
Nc6 {[%clk 0:00:46.7]} 28. Qf6+ {[%clk 0:00:15.7]} 28... Qf7 {[%clk 0:00:41.7]}
29. Qh4 {[%clk 0:00:14.8]} 29... Bc7 {[%clk 0:00:33.1]} 30. g3 {[%clk
0:00:10.6]} 30... Ne5 {[%clk 0:00:24.4]} 31. Bg2 {[%clk 0:00:09.4]} 31... Nc6
{[%clk 0:00:20.6]} 32. Bf1 {[%clk 0:00:08.7]} 32... Ne5 {[%clk 0:00:15.8]} 33.
Bg2 {[%clk 0:00:08.3]} 33... Nc6 {[%clk 0:00:15.2]} 34. Bc1 {[%clk 0:00:08.5]}
34... Kg8 {[%clk 0:00:13.1]} 35. Bg5 {[%clk 0:00:08.2]} 35... Re8 {[%clk
0:00:12.2]} 36. Rxe8+ {[%clk 0:00:08]} 36... Qxe8 {[%clk 0:00:12.1]} 37. Bd5+
{[%clk 0:00:08.5]} 37... Kf8 {[%clk 0:00:08.6]} 38. Qh6# {[%clk 0:00:07.7]} 1-0

[Event "*** SCC Grand Prix: Titled Tuesday Blitz"]
[Site "Chess.com"]
[Date "2020.08.25"]
[Round "9"]
[White "remi04"]
[Black "mortngabriel"]
[Result "1-0"]
[WhiteElo "2596"]
[BlackElo "2443"]
[TimeControl "180+1"]
[EndTime "11:47:29 PDT"]
[Termination "remi04 won on time"]

1. e4 {[%clk 0:03:00.9]} 1... c5 {[%clk 0:03:00.2]} 2. Nf3 {[%clk 0:03:00.9]}
2... e6 {[%clk 0:03:00.5]} 3. d4 {[%clk 0:03:01.3]} 3... cxd4 {[%clk 0:03:01.1]}
4. Nxd4 {[%clk 0:03:02]} 4... Nf6 {[%clk 0:03:01.7]} 5. Nc3 {[%clk 0:03:02.2]}
5... Bb4 {[%clk 0:03:02.3]} 6. e5 {[%clk 0:02:57.6]} 6... Nd5 {[%clk 0:03:02.5]}
7. Qg4 {[%clk 0:02:57.8]} 7... O-O {[%clk 0:03:02.4]} 8. Bd2 {[%clk 0:02:56.6]}
8... f5 {[%clk 0:02:52.3]} 9. Qf3 {[%clk 0:02:39.4]} 9... Qc7 {[%clk 0:02:29.1]}
10. Be2 {[%clk 0:01:21.2]} 10... Qxe5 {[%clk 0:02:24.4]} 11. Nb3 {[%clk
0:01:21.4]} 11... Nxc3 {[%clk 0:02:17.9]} 12. bxc3 {[%clk 0:01:20.4]} 12... Be7
{[%clk 0:02:08.3]} 13. O-O {[%clk 0:01:19.9]} 13... Nc6 {[%clk 0:02:01.6]} 14.
Rfe1 {[%clk 0:01:20.2]} 14... Qf6 {[%clk 0:01:55.6]} 15. c4 {[%clk 0:01:19.9]}
15... b6 {[%clk 0:01:43.8]} 16. Bc3 {[%clk 0:01:19.1]} 16... Qg6 {[%clk
0:01:43.6]} 17. Rad1 {[%clk 0:01:16]} 17... Bf6 {[%clk 0:01:42.2]} 18. Rd6
{[%clk 0:01:10]} 18... Bxc3 {[%clk 0:01:16.9]} 19. Qxc3 {[%clk 0:01:09.7]} 19...
Qf6 {[%clk 0:01:12.5]} 20. Qxf6 {[%clk 0:01:05.8]} 20... Rxf6 {[%clk 0:01:10.4]}
21. Bf3 {[%clk 0:01:06.1]} 21... Ba6 {[%clk 0:01:01.9]} 22. Rxd7 {[%clk
0:01:03.2]} 22... Rc8 {[%clk 0:01:00.8]} 23. Bxc6 {[%clk 0:00:57.2]} 23... Rxc6
{[%clk 0:01:00.3]} 24. Rxa7 {[%clk 0:00:56.2]} 24... Bxc4 {[%clk 0:00:59.3]} 25.
Nd4 {[%clk 0:00:51.4]} 25... Rd6 {[%clk 0:00:59.3]} 26. Nf3 {[%clk 0:00:50.8]}
26... Bd5 {[%clk 0:00:44.8]} 27. Ne5 {[%clk 0:00:50.6]} 27... Rf8 {[%clk
0:00:25.3]} 28. Rd1 {[%clk 0:00:48.6]} 28... Rdd8 {[%clk 0:00:21.3]} 29. h4
{[%clk 0:00:43.7]} 29... Ra8 {[%clk 0:00:21]} 30. Rxa8 {[%clk 0:00:41.7]} 30...
Rxa8 {[%clk 0:00:20.6]} 31. c4 {[%clk 0:00:42.3]} 31... Be4 {[%clk 0:00:17.7]}
32. Rd6 {[%clk 0:00:40.2]} 32... Rxa2 {[%clk 0:00:12.1]} 33. Rxb6 {[%clk
0:00:40.6]} 33... g6 {[%clk 0:00:06.2]} 34. Rxe6 {[%clk 0:00:40.2]} 34... Kg7
{[%clk 0:00:06.4]} 35. Rd6 {[%clk 0:00:38]} 35... Rc2 {[%clk 0:00:05.8]} 36. f3
{[%clk 0:00:35.2]} 36... Ba8 {[%clk 0:00:03.9]} 37. Kh2 {[%clk 0:00:33.9]} 37...
Rb2 {[%clk 0:00:01.6]} 38. Kg3 {[%clk 0:00:33.8]} 38... Rb8 {[%clk 0:00:01.9]}
39. Kf4 {[%clk 0:00:32.4]} 39... Rf8 {[%clk 0:00:02]} 40. Rd7+ {[%clk 0:00:32]}
40... Kh6 {[%clk 0:00:01.5]} 41. c5 {[%clk 0:00:30.4]} 1-0

[Event "*** SCC Grand Prix: Titled Tuesday Blitz"]
[Site "Chess.com"]
[Date "2020.08.25"]
[Round "9"]
[White "skiff134"]
[Black "JuliaEfremova"]
[Result "1-0"]
[WhiteElo "2736"]
[BlackElo "2363"]
[TimeControl "180+1"]
[EndTime "11:47:31 PDT"]
[Termination "skiff134 won by resignation"]

1. d4 {[%clk 0:03:00.9]} 1... d5 {[%clk 0:02:54.9]} 2. c4 {[%clk 0:02:59.4]}
2... c6 {[%clk 0:02:53.8]} 3. Nc3 {[%clk 0:02:59.5]} 3... Nf6 {[%clk 0:02:52.6]}
4. Nf3 {[%clk 0:02:59.8]} 4... a6 {[%clk 0:02:51.5]} 5. a4 {[%clk 0:02:59.5]}
5... e6 {[%clk 0:02:48.5]} 6. g3 {[%clk 0:02:59.4]} 6... Be7 {[%clk 0:02:43.9]}
7. Bg2 {[%clk 0:02:59.2]} 7... O-O {[%clk 0:02:42.4]} 8. O-O {[%clk 0:02:59.1]}
8... Nbd7 {[%clk 0:02:39.3]} 9. a5 {[%clk 0:02:57]} 9... Ne4 {[%clk 0:02:25.4]}
10. Qb3 {[%clk 0:02:49.1]} 10... f5 {[%clk 0:02:22.9]} 11. Ne1 {[%clk
0:02:31.6]} 11... Bd6 {[%clk 0:02:19.5]} 12. cxd5 {[%clk 0:02:21]} 12... Nxc3
{[%clk 0:02:16.8]} 13. bxc3 {[%clk 0:01:52.2]} 13... exd5 {[%clk 0:02:15.3]} 14.
c4 {[%clk 0:01:52.5]} 14... dxc4 {[%clk 0:02:06.2]} 15. Qxc4+ {[%clk 0:01:52.6]}
15... Kh8 {[%clk 0:02:06]} 16. Nd3 {[%clk 0:01:52.8]} 16... Nf6 {[%clk
0:02:02.3]} 17. Bf4 {[%clk 0:01:52.7]} 17... Re8 {[%clk 0:01:53.2]} 18. Bxd6
{[%clk 0:01:35.5]} 18... Qxd6 {[%clk 0:01:52.3]} 19. e3 {[%clk 0:01:36]} 19...
Be6 {[%clk 0:01:43.7]} 20. Qc5 {[%clk 0:01:36.5]} 20... Rad8 {[%clk 0:01:38.8]}
21. Rab1 {[%clk 0:01:35.1]} 21... Re7 {[%clk 0:01:37.5]} 22. Rb2 {[%clk
0:01:31]} 22... Bd5 {[%clk 0:01:36.2]} 23. Qxd6 {[%clk 0:01:24.2]} 23... Rxd6
{[%clk 0:01:35.2]} 24. Rfb1 {[%clk 0:01:24.9]} 24... Bxg2 {[%clk 0:01:20.5]} 25.
Kxg2 {[%clk 0:01:24.9]} 25... Rd5 {[%clk 0:01:19]} 26. Nc5 {[%clk 0:01:12.7]}
26... h6 {[%clk 0:01:16.1]} 27. Rxb7 {[%clk 0:01:08]} 27... Rxb7 {[%clk
0:01:14.6]} 28. Rxb7 {[%clk 0:01:07.5]} 28... Ne4 {[%clk 0:01:14.7]} 29. Nxe4
{[%clk 0:01:02.4]} 29... fxe4 {[%clk 0:01:14.2]} 30. Rc7 {[%clk 0:00:56.5]}
30... Rxa5 {[%clk 0:01:13.8]} 31. Rxc6 {[%clk 0:00:56.9]} 31... Ra1 {[%clk
0:01:09.7]} 32. Re6 {[%clk 0:00:56.5]} 32... a5 {[%clk 0:01:09.4]} 33. Rxe4
{[%clk 0:00:56.7]} 33... a4 {[%clk 0:01:09.6]} 34. Re6 {[%clk 0:00:54.4]} 34...
a3 {[%clk 0:01:09.1]} 35. Ra6 {[%clk 0:00:54.5]} 35... Kg8 {[%clk 0:01:07.9]}
36. h4 {[%clk 0:00:54.6]} 36... Kf7 {[%clk 0:01:07.7]} 37. h5 {[%clk 0:00:53.3]}
37... Ke7 {[%clk 0:00:58.5]} 38. Kf3 {[%clk 0:00:53.2]} 38... Kd7 {[%clk
0:00:57.6]} 39. e4 {[%clk 0:00:53]} 39... Kc7 {[%clk 0:00:57.4]} 40. d5 {[%clk
0:00:41.8]} 40... Kb7 {[%clk 0:00:57.2]} 41. Ra4 {[%clk 0:00:41.5]} 41... Kb6
{[%clk 0:00:56.9]} 42. d6 {[%clk 0:00:38.4]} 42... Rd1 {[%clk 0:00:38.6]} 43.
Rxa3 {[%clk 0:00:30.3]} 43... Rxd6 {[%clk 0:00:37.9]} 44. Kg4 {[%clk 0:00:29.8]}
44... Kc5 {[%clk 0:00:32.4]} 45. Ra5+ {[%clk 0:00:26.2]} 45... Kb6 {[%clk
0:00:27.7]} 46. Rd5 {[%clk 0:00:23.7]} 46... Re6 {[%clk 0:00:24.8]} 47. e5
{[%clk 0:00:20.6]} 47... g6 {[%clk 0:00:22.8]} 48. Rd6+ {[%clk 0:00:17.4]} 48...
Rxd6 {[%clk 0:00:22.4]} 49. exd6 {[%clk 0:00:17.9]} 1-0